Cogmind - Beta 13 @@@ ROGUE MODE // 2024.04.09 @ 23:15:49 Player: Millea Result: Destroyed by Combat Programmer with EMDS Performance ------------- Evolutions (9) 4500 Regions Visited (32) 6400 Robots Destroyed (190) 950 Value Destroyed (5306) 5306 Prototype IDs (113) 2260 Alien Tech Used (2) 400 Bonus (15179) 15179 TOTAL SCORE: 34995 Bonus ------- Triggered Max Security 1000 High Alert Combat Kills 136 Follower Combat Kills 716 Entered DSFs 500 Aligned with FarCom 300 Met Data Miner 300 Met Zhirov 300 Met Warlord at Base 500 MAIN.C Attacked Warlord 500 Met Warlord at Research 2000 Invited to Help at Command 2000 Met MAIN.C 5000 Met Warlord at Command 2000 Friendly Fire -73 Cogmind --------- Core Integrity 0/1600 Matter 298/300 Energy 91/100 System Corruption 17% Temperature Cool (0) Movement Flying (40) Location -1/Command Parts ------- > --- POWER (2) -------- (None) > --- PROPULSION (12) -- Biomechanical Wings > --- UTILITY (9) ------ Graphene Brace > --- WEAPON (2) ------- (None) > --- INVENTORY (5) ---- Q-thruster System Purifier Smartbomb Launcher Peak State ------------ > --- POWER ------------ Vortex Chain Reactor > --- PROPULSION ------- Improved Cesium-ion Thruster Cooled VTOL Module Biomechanical Wings Biomechanical Wings Biomechanical Wings Biomechanical Wings Cooled Field Propulsion Drive Cooled Field Propulsion Drive Q-thruster Cooled Impulse Thruster Cooled Impulse Thruster Cooled Q-thruster > --- UTILITY ---------- Medium Storage Unit Gravity Neutralizer Advanced Cloaking Device Improved Heavy Armor Plating Advanced System Shield Advanced System Shield Advanced System Shield Advanced System Shield > --- WEAPON ----------- Cooled Nova Cannon Enhanced Force Lance > --- INVENTORY -------- Q-thruster Advanced Power Amplifier Stasis Canceller Advanced ECM Suite Graphene Brace System Purifier Transdimensional Reconstructor Smartbomb Launcher [Rating: 183] Favorites ----------- Power Improved Deuterium Engine Engine Improved Deuterium Engine Power Core Light Nuclear Core Reactor Vortex Chain Reactor Propulsion Light Treads Treads Light Treads Flight Unit Cooled VTOL Module Utility Hacking Suite Device Improved Heat Sink Storage Large Storage Unit Processor Experimental Core Analyzer Hackware Hacking Suite Protection Light Armor Plating Weapon Heavy Ion Cannon Energy Gun Small Laser Energy Cannon Heavy Ion Cannon Ballistic Gun Improved Assault Rifle Launcher Missile Launcher Slashing Weapon Great Axe Piercing Weapon Plasma Lance Build | -11 -10 -10 -9 -9 -9 -8 -8 -8 -7 -7 -7 -7 -6 -6 -6 -5 -5 -5 -5 -4 -4 -4 -4 -4 -4 -4 -3 -3 -2 -2 -1 -1 ------- Run | Yrd Mat Min Mat Min Exi Min Mat Sto Fac Low Low Dat Pro Fac DSF Fac Upp Upp Zhi Pro Fac Was Fac Upp Upp War Pro Res Res Tes Acc Com Slots Evolved 18 | . . . 2 . . . 2 . 2 . . . . 2 . 2 . . . . 2 . . . . . . 2 2 . 2 . Power 1 | . . . . . . . . . . . . . . 1 . . . . . . . . . . . . . . . . . . Propulsion 10 | . . . . . . . 2 . 1 . . . . 1 . 2 . . . . . . . . . . . 2 2 . . . Utility 7 | . . . 2 . . . . . 1 . . . . . . . . . . . 2 . . . . . . . . . 2 . Weapon . | . . . . . . . . . . . . . . . . . . . . . . . . . . . . . . . . . Parts Attached 235 | 7 5 4 33 4 1 . 27 10 34 1 2 . 3 4 2 9 2 4 2 . 15 2 8 . 1 6 . 4 11 1 16 17 Power 32 | 2 . 1 5 1 . . 5 . 4 . . . . 2 1 1 . 2 1 . . 1 4 . . 1 . . . . 1 . Engine 20 | 2 . 1 3 1 . . 4 . 4 . . . . 2 1 1 . 1 . . . . . . . . . . . . . . Core 4 | . . . 2 . . . 1 . . . . . . . . . . 1 . . . . . . . . . . . . . . Reactor 8 | . . . . . . . . . . . . . . . . . . . 1 . . 1 4 . . 1 . . . . 1 . Propulsion 75 | 2 2 . 6 . . . 8 5 17 . . . . 1 . 4 . 2 . . 5 1 1 . . 2 . 2 6 . 7 4 Treads 27 | 2 2 . 6 . . . 8 5 4 . . . . . . . . . . . . . . . . . . . . . . . Leg . | . . . . . . . . . . . . . . . . . . . . . . . . . . . . . . . . . Wheel . | . . . . . . . . . . . . . . . . . . . . . . . . . . . . . . . . . Hover . | . . . . . . . . . . . . . . . . . . . . . . . . . . . . . . . . . Flight 48 | . . . . . . . . . 13 . . . . 1 . 4 . 2 . . 5 1 1 . . 2 . 2 6 . 7 4 Utility 84 | 1 1 2 18 1 1 . 6 4 7 1 1 . 2 . 1 2 1 . 1 . 8 . 2 . 1 3 . 2 2 . 7 9 Device 42 | . 1 . 9 1 1 . 3 3 1 1 1 . 2 . 1 1 1 . 1 . 3 . . . . 3 . 1 1 . 3 4 Storage 6 | 1 . 1 . . . . . 1 1 . . . . . . . . . . . . . 1 . . . . . . . 1 . Processor 2 | . . . . . . . . . . . . . . . . . . . . . . . . . . . . . 1 . 1 . Hackware 20 | . . . . . . . 2 . 4 . . . . . . 1 . . . . 5 . 1 . 1 . . 1 . . 1 4 Protection 14 | . . 1 9 . . . 1 . 1 . . . . . . . . . . . . . . . . . . . . . 1 1 Artifact . | . . . . . . . . . . . . . . . . . . . . . . . . . . . . . . . . . Weapon 44 | 2 2 1 4 2 . . 8 1 6 . 1 . 1 1 . 2 1 . . . 2 . 1 . . . . . 3 1 1 4 Energy Gun 1 | . 1 . . . . . . . . . . . . . . . . . . . . . . . . . . . . . . . Energy Cannon 17 | . 1 1 3 2 . . 4 1 3 . . . . . . . . . . . . . . . . . . . . 1 . 1 Ballistic Gun 4 | 2 . . 1 . . . 1 . . . . . . . . . . . . . . . . . . . . . . . . . Ballistic Cannon . | . . . . . . . . . . . . . . . . . . . . . . . . . . . . . . . . . Launcher 6 | . . . . . . . 3 . 1 . . . . . . . . . . . . . . . . . . . . . . 2 Special Weapon . | . . . . . . . . . . . . . . . . . . . . . . . . . . . . . . . . . Impact Weapon . | . . . . . . . . . . . . . . . . . . . . . . . . . . . . . . . . . Slashing Weapon 11 | . . . . . . . . . 2 . 1 . 1 1 . 2 1 . . . 2 . . . . . . . 1 . . . Piercing Weapon 5 | . . . . . . . . . . . . . . . . . . . . . . . 1 . . . . . 2 . 1 1 Special Melee Weapon . | . . . . . . . . . . . . . . . . . . . . . . . . . . . . . . . . . Unidentified Prototypes 13 | . . . . . . . . 1 1 . . . . . . . . . 2 . . . 2 . . 2 . . 1 1 2 1 Parts Lost 39 | . . . 1 1 . . 4 . 4 . . . . . . 1 1 . . . . . . . . . . . . . 2 25 Power 4 | . . . . . . . 2 . . . . . . . . . 1 . . . . . . . . . . . . . . 1 Propulsion 17 | . . . . . . . . . 2 . . . . . . . . . . . . . . . . . . . . . 1 14 Utility 14 | . . . . 1 . . 1 . 2 . . . . . . 1 . . . . . . . . . . . . . . 1 8 Weapon 4 | . . . 1 . . . 1 . . . . . . . . . . . . . . . . . . . . . . . . 2 Highest Loss Streak 21 | . . . 1 1 . . 1 . 2 . . . . . . 1 1 . . . . . . . . . . . . . 1 21 To Critical Strikes . | . . . . . . . . . . . . . . . . . . . . . . . . . . . . . . . . . Average Slot Usage (%) 96 | . 96 100 99 100 100 100 94 100 99 85 86 84 84 84 86 87 94 97 100 100 96 100 100 100 100 98 94 95 94 95 93 89 Engine 7 | . 14 14 7 4 11 11 8 9 7 7 7 7 7 7 11 11 9 6 3 . . . . . . . . . . . . . Reactor 1 | . . . . . . . . . . . . . . . . . . . 1 5 5 10 10 10 10 8 5 4 4 4 4 3 Treads 19 | . 28 28 22 22 22 22 31 36 25 . . . . . . . . . . . . . . . . . . . . . . . Flight 15 | . . . . . . . . . 11 38 38 38 38 40 40 40 47 47 47 47 41 42 42 42 42 42 42 47 52 52 48 47 Device 10 | . 10 . 19 22 29 33 13 9 4 6 6 7 7 4 1 5 5 5 5 5 10 10 10 10 5 5 5 4 3 4 9 12 Storage 8 | . 14 14 11 11 11 11 9 9 7 7 7 7 7 6 6 5 5 5 5 5 5 5 5 5 5 5 5 4 4 4 4 3 Hackware 12 | . . . . . . . 11 18 23 23 23 23 23 20 20 17 17 17 17 17 18 21 21 21 25 26 26 23 21 21 17 10 Protection 3 | . . 13 13 11 3 . 1 . 1 . . . . . . . . . . . . . . . . . . . . . 2 3 Energy Cannon 11 | . 12 20 16 22 22 22 16 18 9 . . . . . . . . . . . . . . . . . . . . 2 4 . Slashing Weapon 1 | . . . . . . . . . 4 1 2 . . 4 6 4 7 11 11 11 10 10 8 5 5 5 5 4 1 . . . Naked Turns . | . . . . . . . . . . . . . . . . . . . . . . . . . . . . . . . . . Heaviest Build 89 | 12 15 36 41 52 57 57 59 63 68 26 29 26 26 32 40 40 30 40 48 48 53 53 57 51 51 52 52 56 58 65 82 89 Greatest Support 103 | 40 40 40 40 40 40 40 80 80 100 27 27 27 27 32 32 45 57 57 48 61 57 56 56 56 56 60 60 70 72 72 90 103 Greatest Overweight (x) 1 | . . . 1 1 1 1 1 . 1 . 1 . . . 1 1 . . 1 . . . 1 . . 1 . . . . . 1 Average Overweight (x) . | . . . . . 1 1 . . . . . . . . . . . . . . . . . . . . . . . . . . Largest Inventory Capacity 20 | 8 8 15 15 15 15 15 15 20 20 10 10 10 10 10 10 10 10 10 10 10 10 10 10 10 10 10 10 10 10 10 10 10 Average Capacity 13 | 7 8 12 15 15 15 15 15 18 16 10 10 10 10 10 10 10 10 10 10 10 10 10 10 10 10 10 10 10 10 10 10 9 Most Carried 20 | 2 8 15 15 15 15 15 15 20 20 10 10 10 10 9 10 10 10 10 10 10 10 10 10 10 10 10 10 10 10 10 10 10 Average Carried 13 | 1 6 11 14 14 15 15 14 17 16 9 9 10 9 8 8 9 9 10 9 10 9 9 9 9 10 9 10 8 9 10 9 9 Final Capacity 20 | 8 8 15 15 15 15 15 15 20 10 10 10 10 10 10 10 10 10 10 10 10 10 10 10 10 10 10 10 10 10 10 10 5 Final Carried 20 | 2 8 15 15 15 15 15 15 20 10 10 10 10 10 8 10 10 10 10 10 10 10 10 10 10 10 10 10 10 10 10 10 4 Class Distribution -------------------- 35% | Mutant 21% | Hacker-Sprinter 16% | Scavenger-Mutant 12% | Hacker-Mutant 9% | Wizard-Sprinter Dominant Class ---------------- Mutant | -10/Materials Mutant | -10/Mines Mutant | -9/Materials Mutant | -9/Mines Mutant | -9/Exiles Mutant | -8/Mines Scavenger-Mutant | -8/Materials Scavenger-Mutant | -8/Storage Hacker-Mutant | -7/Factory Hacker-Sprinter | -7/Lower Caves Hacker-Sprinter | -7/Lower Caves Hacker-Sprinter | -7/Data Miner Hacker-Sprinter | -6/Proximity Caves Hacker-Sprinter | -6/Factory Hacker-Sprinter | -6/DSF Hacker-Sprinter | -5/Factory Hacker-Sprinter | -5/Upper Caves Hacker-Sprinter | -5/Upper Caves Hacker-Sprinter | -5/Zhirov Hacker-Sprinter | -4/Proximity Caves Hacker-Sprinter | -4/Factory Hacker-Sprinter | -4/Waste Hacker-Sprinter | -4/Factory Hacker-Sprinter | -4/Upper Caves Wizard-Sprinter | -4/Upper Caves Wizard-Sprinter | -4/Warlord Wizard-Sprinter | -3/Proximity Caves Wizard-Sprinter | -3/Research Wizard-Sprinter | -2/Research Wizard-Sprinter | -2/Testing Hacker-Sprinter | -1/Access Hacker-Sprinter | -1/Command Resources | -11 -10 -10 -9 -9 -9 -8 -8 -8 -7 -7 -7 -7 -6 -6 -6 -5 -5 -5 -5 -4 -4 -4 -4 -4 -4 -4 -3 -3 -2 -2 -1 -1 ----------- Run | Yrd Mat Min Mat Min Exi Min Mat Sto Fac Low Low Dat Pro Fac DSF Fac Upp Upp Zhi Pro Fac Was Fac Upp Upp War Pro Res Res Tes Acc Com Matter Collected 2854 | 223 116 40 423 38 . . 454 100 372 . 47 . 41 . . 112 53 40 . 30 10 170 45 35 10 . 30 70 110 . 155 130 Remotely . | . . . . . . . . . . . . . . . . . . . . . . . . . . . . . . . . . Salvage Created 7793 | . 285 91 1715 82 . . 1821 428 1493 . . . 48 . . 120 130 90 . . . . . . 57 . . 104 288 . 960 81 Parts 424 | . 30 8 95 . . . 114 26 75 . . . 4 . . 2 12 5 . . . . . . 2 . . 3 11 . 31 6 Haulers Intercepted 32 | . 1 . 5 . . . 6 4 6 . . . . . . 1 . . . . . . . . . . . 1 1 . 7 . Recyclers Shooed 3 | . . . . . . . 2 . 1 . . . . . . . . . . . . . . . . . . . . . . . Parts Field Recycled . | . . . . . . . . . . . . . . . . . . . . . . . . . . . . . . . . . Retrieved Matter . | . . . . . . . . . . . . . . . . . . . . . . . . . . . . . . . . . Parts Self-Destructed 16 | . . . . . . . . . . . . . 4 . . . 10 . . . . . . . 2 . . . . . . . Prevented . | . . . . . . . . . . . . . . . . . . . . . . . . . . . . . . . . . Kills | -11 -10 -10 -9 -9 -9 -8 -8 -8 -7 -7 -7 -7 -6 -6 -6 -5 -5 -5 -5 -4 -4 -4 -4 -4 -4 -4 -3 -3 -2 -2 -1 -1 ------- Run | Yrd Mat Min Mat Min Exi Min Mat Sto Fac Low Low Dat Pro Fac DSF Fac Upp Upp Zhi Pro Fac Was Fac Upp Upp War Pro Res Res Tes Acc Com Combat Hostiles Destroyed 106 | . 5 4 32 6 . . 31 5 15 . . . 1 . . . 5 . . . . . . . 1 . . . . . 1 . Melee 9 | . . . . . . . . . 2 . . . 1 . . . 5 . . . . . . . 1 . . . . . . . Guns 7 | . 2 1 4 . . . . . . . . . . . . . . . . . . . . . . . . . . . . . Cannons 69 | . 3 3 27 6 . . 16 4 10 . . . . . . . . . . . . . . . . . . . . . . . AOE 17 | . . . . . . . 15 . 2 . . . . . . . . . . . . . . . . . . . . . . . Classes Destroyed 16 | . 7 . 2 1 . . 3 . 2 . . . . . . . . 1 . . . . . . . . . . . . . . Worker 10 | . 2 . 2 . . . 5 . 1 . . . . . . . . . . . . . . . . . . . . . . . Builder 3 | . 1 . 1 . . . 1 . . . . . . . . . . . . . . . . . . . . . . . . . Tunneler 3 | . . . . . . . 2 . . . . . . . . . . . . . . . . . . . . . . . 1 . Hauler 32 | . 1 . 5 . . . 6 4 6 . . . . . . 1 . . . . . . . . . . . 1 1 . 7 . Recycler 8 | . . . . . . . 3 . 5 . . . . . . . . . . . . . . . . . . . . . . . Operator 7 | . 1 . 2 . . . 2 . . . . . . . . . . . . . . . . . . . . . 1 . . 1 Watcher 27 | . 2 . 5 . . . 5 . 6 . . . . . . 1 . . . . . . . . . . . . 3 . 4 1 Swarmer 29 | . 3 3 7 . . . 11 . . . . . . . . . 5 . . . . . . . . . . . . . . . Grunt 38 | . 2 1 15 . . . 12 2 5 . . . . . . . . . . . . . . . . . . . . . 1 . Brawler 1 | . . . 1 . . . . . . . . . . . . . . . . . . . . . . . . . . . . . Duelist 1 | . . . . . . . . . 1 . . . . . . . . . . . . . . . . . . . . . . . Sentry 22 | . . . 9 . . . 7 3 3 . . . . . . . . . . . . . . . . . . . . . . . Hunter 4 | . . . . . . . 1 . 3 . . . . . . . . . . . . . . . . . . . . . . . Programmer 5 | . . . . . . . . . 3 . . . 1 . . . . . . . . . . . 1 . . . . . . . Decomposer 2 | . . . . . . . . . . . . . . . . . . 2 . . . . . . . . . . . . . . Samaritan 1 | . . . . . . . . . . . . . . . . . . 1 . . . . . . . . . . . . . . Assembled 6 | . . . . 6 . . . . . . . . . . . . . . . . . . . . . . . . . . . . Best Kill Streak 13 | . 3 3 7 6 . . 13 1 6 . . . 1 . . 1 5 . . . . . . . 1 . . 1 2 . 3 2 Combat Bots Only 6 | . 3 3 5 6 . . 5 1 4 . . . 1 . . . 5 . . . . . . . 1 . . . . . 1 . Max Kills in Single Turn 3 | . 1 2 2 1 . . 3 1 2 . . . 1 . . 1 1 1 . . . . . . 1 . . 1 1 . 2 1 Gunslinging . | . . . . . . . . . . . . . . . . . . . . . . . . . . . . . . . . . Exploded 3 | . . . . . . . 3 . 1 . . . . . . . . . . . . . . . . . . . . . . . Melee 1 | . . . . . . . . . 1 . . . 1 . . . 1 . . . . . . . 1 . . . . . . . Uniques/NPCs Destroyed . | . . . . . . . . . . . . . . . . . . . . . . . . . . . . . . . . . Combat | -11 -10 -10 -9 -9 -9 -8 -8 -8 -7 -7 -7 -7 -6 -6 -6 -5 -5 -5 -5 -4 -4 -4 -4 -4 -4 -4 -3 -3 -2 -2 -1 -1 -------- Run | Yrd Mat Min Mat Min Exi Min Mat Sto Fac Low Low Dat Pro Fac DSF Fac Upp Upp Zhi Pro Fac Was Fac Upp Upp War Pro Res Res Tes Acc Com Hostile Shots Fired 826 | . 22 5 118 32 . . 147 24 187 . 3 . 10 . 1 4 21 . . 26 2 . 7 10 . . 12 17 . 2 39 137 Missed 315 | . 7 4 37 8 . . 48 7 60 . . . 5 . 1 3 8 . . 17 1 . 4 6 . . 6 12 . 2 21 58 Damage Taken 9866 | . 142 10 1080 339 . . 1395 257 1513 . 43 . 88 . . 24 188 . . 176 91 . 92 65 . . 149 190 18 . 423 3583 Core 2306 | . 8 . 91 68 . . 101 63 106 . 13 . 29 . . . 29 . . 70 19 . 16 17 . . 22 96 9 . 22 1527 Absorbed by Shields 79 | . . . 24 55 . . . . . . . . . . . . . . . . . . . . . . . . . . . . Regen/Repaired (Parts) 548 | . . . 33 . . . 281 . 113 . . . . . . 30 . . . . 38 17 16 . . 20 . . . . . . Core Remaining (%) 87 | 100 . 96 . . . 60 . 70 . . . . 78 . 100 . . . . 90 . . . . . . 93 92 . 99 . . Volleys Fired 394 | . 31 8 95 10 . . 106 25 60 . . . . . . . . . . . . . . . . . . . . 4 33 22 Largest 2 | . 2 2 2 2 . . 2 2 2 . . . . . . . . . . . . . . . . . . . . 1 1 1 Hottest 150 | . 100 120 136 136 . . 130 133 133 . . . . . . . . . . . . . . . . . . . . 50 50 150 Shots Fired 698 | . 62 14 190 20 . . 190 50 113 . . . . . . . . . . . . . . . . . . . . 4 33 22 Gun 78 | . 31 5 42 . . . . . . . . . . . . . . . . . . . . . . . . . . . . . Cannon 600 | . 31 9 148 20 . . 176 50 110 . . . . . . . . . . . . . . . . . . . . 4 33 19 Launcher 20 | . . . . . . . 14 . 3 . . . . . . . . . . . . . . . . . . . . . . 3 Special . | . . . . . . . . . . . . . . . . . . . . . . . . . . . . . . . . . Kinetic 61 | . 19 . 42 . . . . . . . . . . . . . . . . . . . . . . . . . . . . . Thermal 617 | . 43 14 148 20 . . 176 50 110 . . . . . . . . . . . . . . . . . . . . 4 33 19 Explosive 20 | . . . . . . . 14 . 3 . . . . . . . . . . . . . . . . . . . . . . 3 Electromagnetic . | . . . . . . . . . . . . . . . . . . . . . . . . . . . . . . . . . Robot Hit Streak 21 | . 9 3 12 7 . . 13 10 21 . . . . . . . . . . . . . . . . . . . . 1 8 5 Robot Miss Streak 6 | . 5 2 3 4 . . 4 2 2 . . . . . . . . . . . . . . . . . . . . 1 6 4 Penetration Max . | . . . . . . . . . . . . . . . . . . . . . . . . . . . . . . . . . Secondary Targets . | . . . . . . . . . . . . . . . . . . . . . . . . . . . . . . . . . Shots Hit Robots 494 | . 36 7 116 9 . . 111 33 111 . . . 2 . . 6 5 3 . . 2 . 1 . 1 . . 4 13 1 24 9 Core Hits 245 | . 19 6 54 6 . . 69 10 44 . . . 1 . . 3 5 2 . . 1 . . . 1 . . 1 4 . 14 5 Critical Kills 4 | . . . 2 . . . . 1 . . . . . . . . . . . . . . . . . . . . . . 1 . Critical Parts Destroyed 1 | . . . 1 . . . . . . . . . . . . . . . . . . . . . . . . . . . . . Critical Strikes 12 | . . . 3 . . . . 1 3 . . . . . . 3 . . . . . . . . . . . . . . 2 . Meltdown 4 | . . . 2 . . . . 1 . . . . . . . . . . . . . . . . . . . . . . 1 . Destroy 1 | . . . 1 . . . . . . . . . . . . . . . . . . . . . . . . . . . . . Sever 6 | . . . . . . . . . 3 . . . . . . 3 . . . . . . . . . . . . . . . . Impale 1 | . . . . . . . . . . . . . . . . . . . . . . . . . . . . . . . 1 . Melee Attacks 162 | . . . . . . . . . 51 2 1 . 2 . . 17 8 3 . . 5 . 5 . 1 . . 15 23 1 14 14 Impact . | . . . . . . . . . . . . . . . . . . . . . . . . . . . . . . . . . Slashing 95 | . . . . . . . . . 51 2 1 . 2 . . 17 8 3 . . 5 . 3 . . . . 3 . . . . Piercing 67 | . . . . . . . . . . . . . . . . . . . . . . . 2 . 1 . . 12 23 1 14 14 Sneak Attacks 25 | . . . . . . . . . 11 . . . . . . 1 . 3 . . 1 . . . 1 . . 1 3 . 4 . Combat Hostiles 1 | . . . . . . . . . . . . . . . . . . . . . . . . . 1 . . . . . . . Follow-up Attacks 7 | . . . . . . . . . 4 . . . . . . . 2 . . . . . . . . . . 1 . . . . Damage Inflicted 17300 | . 471 166 2338 203 . . 4463 834 4461 . . . 77 . . 287 177 280 . . 135 . 53 . 114 . . 294 793 42 1483 629 Guns 635 | . 192 23 420 . . . . . . . . . . . . . . . . . . . . . . . . . . . . . Cannons 9522 | . 279 143 1918 203 . . 3150 831 1848 . . . . . . . . . . . . . . . . . . . . 42 805 303 Explosions 2164 | . . . . . . . 1278 . 537 . . . . . . . . . . . . . . . . . . . . . 204 145 Melee 4938 | . . . . . . . . . 2073 . . . 77 . . 287 177 280 . . 135 . 53 . 114 . . 294 793 . 474 181 Ramming 41 | . . . . . . . 35 3 3 . . . . . . . . . . . . . . . . . . . . . . . Kinetic 526 | . 106 . 420 . . . . . . . . . . . . . . . . . . . . . . . . . . . . . Thermal 9631 | . 365 166 1918 203 . . 3150 831 1848 . . . . . . . . . . . . . . . . . . . . 42 805 303 Explosive 2164 | . . . . . . . 1278 . 537 . . . . . . . . . . . . . . . . . . . . . 204 145 Electromagnetic . | . . . . . . . . . . . . . . . . . . . . . . . . . . . . . . . . . Impact . | . . . . . . . . . . . . . . . . . . . . . . . . . . . . . . . . . Slashing 3121 | . . . . . . . . . 2073 . . . 77 . . 287 177 280 . . 135 . 53 . . . . 39 . . . . Piercing 1817 | . . . . . . . . . . . . . . . . . . . . . . . . . 114 . . 255 793 . 474 181 Highest Corruption 17 | . . . . . . . . . 1 1 1 1 1 . . . . . . . 3 . . . . . 1 . . . . 17 Average Corruption 1 | . . . . . . . . . 1 1 1 1 1 . . . . . . . 2 . . . . . 1 . . . . 5 Corruption Purged 3 | . . . . . . . . . . . . . . . . . . . . . 3 . . . . . . . . . . . Corruption Blocked 22 | . . . . . . . . . . . . . . . . . . . . . . . . . . . . . . . . 22 Effects 19 | . . . . . . . . . 10 2 1 . 1 . . . . . . . 2 . . . . . . . . . . 3 Message Errors 6 | . . . . . . . . . 1 1 1 . 1 . . . . . . . 1 . . . . . . . . . . 1 Matter Fused 6 | . . . . . . . . . 4 . . . . . . . . . . . 1 . . . . . . . . . . 1 Heat Flow Errors 2 | . . . . . . . . . 2 . . . . . . . . . . . . . . . . . . . . . . . Energy Discharges 2 | . . . . . . . . . 2 . . . . . . . . . . . . . . . . . . . . . . . Parts Rejected 1 | . . . . . . . . . . . . . . . . . . . . . . . . . . . . . . . . 1 Data Loss (minor) 1 | . . . . . . . . . . 1 . . . . . . . . . . . . . . . . . . . . . . Alerts 1 | . . . . . . . . . 1 . . . . . . . . . . . . . . . . . . . . . . . Overload Shots 1 | . . . . . . . . . . . . . . . . . . . . . . . . . . . . . . . . 1 Overflow Damage 764 | . . . 14 . . . 128 . 261 . . . . . . . . 86 . . . . . . . . . . 145 . 89 41 Projectiles 108 | . . . 14 . . . 51 . 10 . . . . . . . . . . . . . . . . . . . . . . 33 Explosions 131 | . . . . . . . 77 . 16 . . . . . . . . . . . . . . . . . . . . . 38 . Melee 525 | . . . . . . . . . 235 . . . . . . . . 86 . . . . . . . . . . 145 . 51 8 Knockbacks . | . . . . . . . . . . . . . . . . . . . . . . . . . . . . . . . . . Impact . | . . . . . . . . . . . . . . . . . . . . . . . . . . . . . . . . . Kinetic . | . . . . . . . . . . . . . . . . . . . . . . . . . . . . . . . . . Secondary . | . . . . . . . . . . . . . . . . . . . . . . . . . . . . . . . . . Self-Inflicted Damage 140 | . . . . . . . 61 . 27 . . . . . . . . . . . . . . . . . . . . . . 52 Shots 6 | . . . . . . . 3 . 2 . . . . . . . . . . . . . . . . . . . . . . 1 Rammed 5 | . . . . . . . 4 1 . . . . . . . . . . . . . . . . . . . . . . . . Targets Rammed 7 | . . . . . . . 5 1 1 . . . . . . . . . . . . . . . . . . . . . . . Kicked . | . . . . . . . . . . . . . . . . . . . . . . . . . . . . . . . . . Crushed 2 | . . . . . . . 1 . 1 . . . . . . . . . . . . . . . . . . . . . . . Highest Temperature 492 | . 265 164 197 196 . . 291 90 286 . 3 . 7 80 . 290 112 102 104 270 208 53 28 36 60 88 2 152 240 240 285 492 Average Temperature 78 | . 87 60 62 129 . . 78 30 69 . 2 . 5 31 . 89 47 34 38 80 47 17 10 16 26 49 2 54 50 88 83 135 Received Heat Transfer 1449 | . 45 6 302 40 . . 540 126 189 . 9 . 21 . . 9 . . . 9 . . . . . . 9 . . . 18 126 Effects 11 | . 1 . . . . . . . 1 . . . . . . . . . . . . . . . . . . . . . . 9 Energy Bleed 3 | . 1 . . . . . . . . . . . . . . . . . . . . . . . . . . . . . . 2 Interference 8 | . . . . . . . . . 1 . . . . . . . . . . . . . . . . . . . . . . 7 Siege Activations . | . . . . . . . . . . . . . . . . . . . . . . . . . . . . . . . . . Robots Corrupted . | . . . . . . . . . . . . . . . . . . . . . . . . . . . . . . . . . Combat Hostiles . | . . . . . . . . . . . . . . . . . . . . . . . . . . . . . . . . . Parts Fried . | . . . . . . . . . . . . . . . . . . . . . . . . . . . . . . . . . Impact Corruptions . | . . . . . . . . . . . . . . . . . . . . . . . . . . . . . . . . . Robots Melted 5 | . . . 2 . . . . 1 1 . . . . . . . . . . . . . . . . . . . . . 1 . Combat Hostiles 4 | . . . 1 . . . . 1 1 . . . . . . . . . . . . . . . . . . . . . 1 . Parts Melted 31 | . . 1 8 . . . 6 5 8 . . . . . . . . . . . . . . . . . . . . . 3 . Heat Transferred 14131 | . 792 346 3552 333 . . 4218 1258 2701 . . . . . . . . . . . . . . . . . . . . 37 703 191 Parts Sabotaged . | . . . . . . . . . . . . . . . . . . . . . . . . . . . . . . . . . Parts Stolen . | . . . . . . . . . . . . . . . . . . . . . . . . . . . . . . . . . Parts Stripped . | . . . . . . . . . . . . . . . . . . . . . . . . . . . . . . . . . Power Chain Reactions . | . . . . . . . . . . . . . . . . . . . . . . . . . . . . . . . . . Alert | -11 -10 -10 -9 -9 -9 -8 -8 -8 -7 -7 -7 -7 -6 -6 -6 -5 -5 -5 -5 -4 -4 -4 -4 -4 -4 -4 -3 -3 -2 -2 -1 -1 ------- Run | Yrd Mat Min Mat Min Exi Min Mat Sto Fac Low Low Dat Pro Fac DSF Fac Upp Upp Zhi Pro Fac Was Fac Upp Upp War Pro Res Res Tes Acc Com Peak Influence 1980 | . 218 149 667 259 . . 444 406 639 . . . . 65 60 172 . . . . 161 10 246 . . . . 234 434 1980 1206 1642 Initial 1188 | . . 1 . 259 . . . 46 133 . . . . 65 45 31 . . . . 75 10 7 . . . . 70 126 55 1188 771 Average 276 | . 65 26 358 249 . . 164 134 120 . . . . 65 46 96 . . . . 81 10 138 . . . . 143 232 1768 965 1357 Maximum Alert Level 5 | . 1 . 2 1 . . 2 2 2 . . . . . . . . . . . . . 1 . . . . 1 2 5 4 5 Low Security (%) 60 | 100 84 100 20 . . 100 66 76 83 . . . . 100 100 100 . . . . 100 100 90 . . . . 62 35 1 . . Level 1 21 | . 15 . 49 100 . . 29 19 10 . . . . . . . . . . . . . 9 . . . . 37 50 . . . Level 2 8 | . . . 29 . . . 4 3 6 . . . . . . . . . . . . . . . . . . . 13 . 8 . Level 3 3 | . . . . . . . . . . . . . . . . . . . . . . . . . . . . . . . 80 15 Level 4 5 | . . . . . . . . . . . . . . . . . . . . . . . . . . . . . . . 10 80 Level 5 . | . . . . . . . . . . . . . . . . . . . . . . . . . . . . . . . . 3 High Security . | . . . . . . . . . . . . . . . . . . . . . . . . . . . . . . . . . Max Security . | . . . . . . . . . . . . . . . . . . . . . . . . . . . . . . 99 . . Squads Dispatched 66 | . 1 . 5 . . . 8 . 17 . . . . . 2 2 . . . 1 5 . 2 . . . . 2 . 1 9 11 Investigation 31 | . 1 . 5 . . . 4 . 11 . . . . . . 1 . . . . 3 . . . . . . . . . 3 3 Extermination 7 | . . . . . . . . . 3 . . . . . . . . . . . . . . . . . . . . . 1 3 Reinforcement 17 | . . . . . . . 2 . 2 . . . . . 2 1 . . . . 2 . 2 . . . . 2 . 1 3 . Assault 9 | . . . . . . . . . 1 . . . . . . . . . . 1 . . . . . . . . . . 2 5 Garrison 2 | . . . . . . . 2 . . . . . . . . . . . . . . . . . . . . . . . . . Intercept . | . . . . . . . . . . . . . . . . . . . . . . . . . . . . . . . . . Searches Triggered . | . . . . . . . . . . . . . . . . . . . . . . . . . . . . . . . . . Construction Impeded 2 | . . . . . . . . . 1 . . . . . . . . . . . . . 1 . . . . . . . . . Haulers Reinforced 3 | . . . . . . . . . 1 . . . . . . . . . . . . . 1 . . . . . . . 1 . Active Scanning Responses . | . . . . . . . . . . . . . . . . . . . . . . . . . . . . . . . . . Cargo Convoy Interrupts . | . . . . . . . . . . . . . . . . . . . . . . . . . . . . . . . . . Stealth | -11 -10 -10 -9 -9 -9 -8 -8 -8 -7 -7 -7 -7 -6 -6 -6 -5 -5 -5 -5 -4 -4 -4 -4 -4 -4 -4 -3 -3 -2 -2 -1 -1 --------- Run | Yrd Mat Min Mat Min Exi Min Mat Sto Fac Low Low Dat Pro Fac DSF Fac Upp Upp Zhi Pro Fac Was Fac Upp Upp War Pro Res Res Tes Acc Com Distress Signals 26 | . . . 5 . . . 2 1 1 . . . . . . . . . . . . . 2 . . . . 3 6 . 1 5 Communications Jammed . | . . . . . . . . . . . . . . . . . . . . . . . . . . . . . . . . . Distress Signals . | . . . . . . . . . . . . . . . . . . . . . . . . . . . . . . . . . Times Spotted 413 | . 10 6 51 11 . . 41 12 46 . 9 . 5 . 1 3 6 1 . 15 9 1 12 7 . . 9 16 18 9 37 78 Peak Tracking Total 18 | . 3 2 6 13 . . 5 3 6 . 8 . 3 . 1 1 5 2 . 12 4 1 9 8 . . 7 10 8 8 12 18 Tactical Retreats 61 | . . . 2 . . . 3 . 6 . 3 . 2 . 1 . 1 1 . 4 1 . 2 . . . 1 3 4 . 10 17 Traps | -11 -10 -10 -9 -9 -9 -8 -8 -8 -7 -7 -7 -7 -6 -6 -6 -5 -5 -5 -5 -4 -4 -4 -4 -4 -4 -4 -3 -3 -2 -2 -1 -1 ------- Run | Yrd Mat Min Mat Min Exi Min Mat Sto Fac Low Low Dat Pro Fac DSF Fac Upp Upp Zhi Pro Fac Was Fac Upp Upp War Pro Res Res Tes Acc Com Traps Triggered 17 | . . . . 1 . . 1 . 2 . . . . . 2 1 . . . . 4 . 1 . . . . 1 . 1 2 1 Indirectly . | . . . . . . . . . . . . . . . . . . . . . . . . . . . . . . . . . Trap Hack Attempts . | . . . . . . . . . . . . . . . . . . . . . . . . . . . . . . . . . Triggered . | . . . . . . . . . . . . . . . . . . . . . . . . . . . . . . . . . Disarmed . | . . . . . . . . . . . . . . . . . . . . . . . . . . . . . . . . . Reprogrammed . | . . . . . . . . . . . . . . . . . . . . . . . . . . . . . . . . . Reused . | . . . . . . . . . . . . . . . . . . . . . . . . . . . . . . . . . Traps Extracted . | . . . . . . . . . . . . . . . . . . . . . . . . . . . . . . . . . Installed . | . . . . . . . . . . . . . . . . . . . . . . . . . . . . . . . . . Triggered 8 | . . . . . . . . . . 2 . . . . . . . . . 1 . . . . . 5 . . . . . . Most Traps Carried 4 | . . 4 4 . . . . . . . . . . . . . . . . . . . . . . . . . . . . . Machines | -11 -10 -10 -9 -9 -9 -8 -8 -8 -7 -7 -7 -7 -6 -6 -6 -5 -5 -5 -5 -4 -4 -4 -4 -4 -4 -4 -3 -3 -2 -2 -1 -1 ---------- Run | Yrd Mat Min Mat Min Exi Min Mat Sto Fac Low Low Dat Pro Fac DSF Fac Upp Upp Zhi Pro Fac Was Fac Upp Upp War Pro Res Res Tes Acc Com Machines Disabled 24 | . . . 3 . . . 4 2 3 1 1 . . . . . . . . . . . 1 . . . . . . 5 2 2 Max in Single Turn 2 | . . . 1 . . . 2 1 1 1 1 . . . . . . . . . . . . . . . . . . 1 1 2 Garrison Access 10 | . . . . . . . 1 . 4 . . . . . . 1 . . . . 1 . 1 . . . . 1 1 . . . Phase Generator 1 | . . . . . . . . . . . . . . . . . . . . . . . . . . . . . . . . 1 Machines Repaired . | . . . . . . . . . . . . . . . . . . . . . . . . . . . . . . . . . Machines Dismantled . | . . . . . . . . . . . . . . . . . . . . . . . . . . . . . . . . . Machines Sabotaged . | . . . . . . . . . . . . . . . . . . . . . . . . . . . . . . . . . Overloaded Fab Kills . | . . . . . . . . . . . . . . . . . . . . . . . . . . . . . . . . . Hacking | -11 -10 -10 -9 -9 -9 -8 -8 -8 -7 -7 -7 -7 -6 -6 -6 -5 -5 -5 -5 -4 -4 -4 -4 -4 -4 -4 -3 -3 -2 -2 -1 -1 --------- Run | Yrd Mat Min Mat Min Exi Min Mat Sto Fac Low Low Dat Pro Fac DSF Fac Upp Upp Zhi Pro Fac Was Fac Upp Upp War Pro Res Res Tes Acc Com Machines Accessed 159 | . 4 . 17 1 2 . 12 14 33 . . 4 . 1 . 9 . . 6 . 9 . 4 1 . 11 . 6 4 . 12 9 Terminals 88 | . 4 . 11 . . . 9 12 21 . . . . 1 . 4 . . . . 3 . 2 1 . . . 4 2 . 5 9 Fabricators 16 | . . . . . . . . . 6 . . . . . . . . . . . 3 . 1 . . . . 1 1 . 4 . Repair Stations 6 | . . . 2 . . . 1 . 1 . . . . . . 1 . . . . 1 . . . . . . . . . . . Recycling Units 8 | . . . 2 . . . . 2 1 . . . . . . 2 . . . . . . . . . . . . . . 1 . Scanalyzers 7 | . . . 2 . . . 1 . . . . . . . . 1 . . . . 1 . . . . . . . . . 2 . Garrison Access 10 | . . . . . . . 1 . 4 . . . . . . 1 . . . . 1 . 1 . . . . 1 1 . . . Total Hacks 631 | . 19 . 64 1 8 . 51 35 96 . . 32 . 4 . 31 . . 19 . 48 . 34 1 . 29 . 21 16 . 65 57 Successful 350 | . 9 . 40 1 8 . 26 21 58 . . 32 . 1 . 17 . . 19 . 25 . 17 1 . 29 . 8 5 . 20 13 Failed 276 | . 9 . 23 . . . 24 13 37 . . . . 3 . 14 . . . . 23 . 17 . . . . 13 11 . 45 44 Catastrophic 53 | . . . 4 . . . 4 . 5 . . . . . . 3 . . . . 4 . 3 . . . . . 1 . 14 15 Database Lockouts 5 | . 1 . 1 . . . 1 1 1 . . . . . . . . . . . . . . . . . . . . . . . Manual 258 | . 18 . 33 . 1 . 27 30 33 1 . . . . . 14 . . . . 9 . 18 . . 1 . 4 2 . 25 42 Terminals 365 | . 19 . 32 . . . 36 29 72 . . . . 4 . 12 . . . . 13 . 30 1 . . . 17 8 . 35 57 Fabricators 51 | . . . . . . . . . 14 . . . . . . . . . . . 20 . 2 . . . . 2 4 . 9 . Repair Stations 16 | . . . 5 . . . 2 . 2 . . . . . . 3 . . . . 4 . . . . . . . . . . . Recycling Units 27 | . . . 6 . . . . 6 2 . . . . . . 11 . . . . . . . . . . . . . . 2 . Scanalyzers 62 | . . . 21 . . . 10 . . . . . . . . 3 . . . . 9 . . . . . . . . . 19 . Garrison Access 21 | . . . . . . . 3 . 6 . . . . . . 2 . . . . 2 . 2 . . . . 2 4 . . . Terminal Hacks 196 | . 8 . 9 1 8 . 13 8 32 . . 32 . 1 . 3 . . 19 . 2 . 12 1 . 29 . 4 3 . 6 5 Record 40 | . . . . . 7 . . . . . . 11 . . . . . . 7 . . . . 1 . 13 . . 1 . . . Part Schematic 22 | . . . . . . . . 1 5 . . 12 . . . . . . 4 . . . . . . . . . . . . . Robot Schematic 6 | . . . . . . . . . . . . 6 . . . . . . . . . . . . . . . . . . . . Robot Analysis 24 | . 5 . 3 . . . 3 3 4 . . . . . . 2 . . 4 . . . . . . . . . . . . . Prototype ID Bank 39 | . . . 4 . . . 3 . 6 . . 3 . . . 1 . . 4 . . . 1 . . 15 . . 1 . . 1 Open Door 6 | . . . . 1 . . . 3 . . . . . . . . . . . . . . . . . 1 . . . . . 1 Open DSF 5 | . . . . . . . . . 2 . . . . 1 . . . . . . . . . . . . . 1 1 . . . Level Access Points 1 | . . . . . . . . . . . . . . . . . . . . . . . . . . . . 1 . . . . Branch Access Points 5 | . . . . . . . 1 . 1 . . . . . . . . . . . 1 . 1 . . . . . . . 1 . Machine Index 1 | . . . . . . . . . 1 . . . . . . . . . . . . . . . . . . . . . . . Terminal Index 3 | . . . . . . . . . 1 . . . . . . . . . . . . . 1 . . . . . . . . 1 Fabricator Index 1 | . . . . . . . . . . . . . . . . . . . . . . . 1 . . . . . . . . . Garrison Index 1 | . . . . . . . . . . . . . . . . . . . . . . . . . . . . 1 . . . . Alert Level 6 | . . . . . . . 1 . 1 . . . . . . . . . . . . . 2 . . . . . . . 1 1 Unreport Threat 18 | . 1 . 1 . . . 4 . 5 . . . . . . . . . . . . . 2 . . . . 1 . . 4 . Locate Traps 3 | . 1 . 1 . . . . . . . . . . . . . . . . . . . 1 . . . . . . . . . Security Status 1 | . . . . . . . . . . . . . . . . . . . . . . . 1 . . . . . . . . . Transport Status 1 | . 1 . . . . . . . . . . . . . . . . . . . . . . . . . . . . . . . Recall Investigation 4 | . . . . . . . . . 4 . . . . . . . . . . . . . . . . . . . . . . . Recall Reinforcements 3 | . . . . . . . 1 . 1 . . . . . . . . . . . . . 1 . . . . . . . . . Hauler Manifests 1 | . . . . . . . . 1 . . . . . . . . . . . . . . . . . . . . . . . . Registered Components 1 | . . . . . . . . . 1 . . . . . . . . . . . . . . . . . . . . . . . Registered Prototypes 1 | . . . . . . . . . . . . . . . . . . . . . 1 . . . . . . . . . . . Zone Layout 1 | . . . . . . . . . . . . . . . . . . . . . . . 1 . . . . . . . . . Derelict Proto ID Bank 1 | . . . . . 1 . . . . . . . . . . . . . . . . . . . . . . . . . . . Disengage Seal 1 | . . . . . . . . . . . . . . . . . . . . . . . . . . . . . . . . 1 Fabricator Hacks 30 | . . . . . . . . . 10 . . . . . . . . . . . 15 . 1 . . . . 1 1 . 2 . Network Status 1 | . . . . . . . . . . . . . . . . . . . . . 1 . . . . . . . . . . . Load Schematic 13 | . . . . . . . . . 5 . . . . . . . . . . . 7 . . . . . . . . . 1 . Build 16 | . . . . . . . . . 5 . . . . . . . . . . . 7 . 1 . . . . 1 1 . 1 . Repair Station Hacks 11 | . . . 3 . . . 2 . 2 . . . . . . 2 . . . . 2 . . . . . . . . . . . Scan Component 6 | . . . 2 . . . 1 . 1 . . . . . . 1 . . . . 1 . . . . . . . . . . . Repair 5 | . . . 1 . . . 1 . 1 . . . . . . 1 . . . . 1 . . . . . . . . . . . Recycling Unit Hacks 3 | . . . 1 . . . . . . . . . . . . 2 . . . . . . . . . . . . . . . . Retrieve Matter 1 | . . . . . . . . . . . . . . . . 1 . . . . . . . . . . . . . . . . Retrieve Components 2 | . . . 1 . . . . . . . . . . . . 1 . . . . . . . . . . . . . . . . Scanalyzer 40 | . . . 17 . . . 8 . . . . . . . . 3 . . . . 4 . . . . . . . . . 8 . Insert Component 20 | . . . 8 . . . 4 . . . . . . . . 2 . . . . 2 . . . . . . . . . 4 . Analyze 20 | . . . 9 . . . 4 . . . . . . . . 1 . . . . 2 . . . . . . . . . 4 . Garrison Access Hacks 9 | . . . . . . . 1 . 3 . . . . . . 1 . . . . 1 . 1 . . . . 1 1 . . . Seal Access 9 | . . . . . . . 1 . 3 . . . . . . 1 . . . . 1 . 1 . . . . 1 1 . . . Unauthorized Hacks 61 | . 1 . 10 . . . 2 13 11 . . . . . . 6 . . . . 1 . 3 . . . . 2 . . 4 8 Terminals 45 | . 1 . 4 . . . 1 8 11 . . . . . . 2 . . . . 1 . 3 . . . . 2 . . 4 8 Track 2 | . . . . . . . . . . . . . . . . . . . . . . . 1 . . . . . . . . 1 Assimilate 5 | . . . . . . . . . 2 . . . . . . . . . . . 1 . . . . . . . . . 1 1 Botnet 36 | . 1 . 4 . . . 1 8 9 . . . . . . 2 . . . . . . 2 . . . . 2 . . 2 5 Disrupt 1 | . . . . . . . . . . . . . . . . . . . . . . . . . . . . . . . 1 . Operators 1 | . . . . . . . . . . . . . . . . . . . . . . . . . . . . . . . . 1 Fabricators . | . . . . . . . . . . . . . . . . . . . . . . . . . . . . . . . . . Repair Stations . | . . . . . . . . . . . . . . . . . . . . . . . . . . . . . . . . . Recycling Units 13 | . . . 4 . . . . 5 . . . . . . . 4 . . . . . . . . . . . . . . . . Monitor 3 | . . . 1 . . . . 1 . . . . . . . 1 . . . . . . . . . . . . . . . . Reject 5 | . . . 1 . . . . 2 . . . . . . . 2 . . . . . . . . . . . . . . . . Mask 4 | . . . 1 . . . . 2 . . . . . . . 1 . . . . . . . . . . . . . . . . Tunnel 1 | . . . 1 . . . . . . . . . . . . . . . . . . . . . . . . . . . . . Scanalyzers 3 | . . . 2 . . . 1 . . . . . . . . . . . . . . . . . . . . . . . . . Extract 3 | . . . 2 . . . 1 . . . . . . . . . . . . . . . . . . . . . . . . . Garrison Access . | . . . . . . . . . . . . . . . . . . . . . . . . . . . . . . . . . Data Cores Recovered 3 | . 1 . 1 . . . 1 . . . . . . . . . . . . . . . . . . . . . . . . . Used . | . . . . . . . . . . . . . . . . . . . . . . . . . . . . . . . . . Hacking Detections 110 | . 4 . 14 . . . 12 12 28 . . . . . . 7 . . . . 8 . 3 . . . . 3 1 . 11 7 Full Trace Events 25 | . 1 . 2 . . . 2 . 11 . . . . . . 1 . . . . 3 . . . . . . . . . 2 3 Feedback Events 1 | . . . . . . . . . 1 . . . . . . . . . . . . . . . . . . . . . . . Hackware Fried 1 | . . . . . . . . . 1 . . . . . . . . . . . . . . . . . . . . . . . Feedback Blocked . | . . . . . . . . . . . . . . . . . . . . . . . . . . . . . . . . . Robot Schematics Acquired 6 | . . . . . . . . . . . . 6 . . . . . . . . . . . . . . . . . . . . Robots Built 4 | . . . . . . . . . . . . . . . . . . . . . . . . . . . . 3 1 . . . Authchips . | . . . . . . . . . . . . . . . . . . . . . . . . . . . . . . . . . Time 136 | . . . . . . . . . . . . . . . . . . . . . . . . . . . . 62 74 . . . Total Robot Build Rating 30 | . . . . . . . . . . . . . . . . . . . . . . . . . . . . 21 9 . . . Part Schematics Acquired 49 | . . . 15 . . . 7 1 5 . . 12 . . . 1 . . 4 . 1 . . . . . . . . . 3 . Parts Built 14 | . . . . . . . . . 5 . . . . . . . . . . . 6 . 2 . . . . . . . 1 . Authchips 4 | . . . . . . . . . . . . . . . . . . . . . 4 . . . . . . . . . . . Time 977 | . . . . . . . . . 395 . . . . . . . . . . . 463 . 69 . . . . . . . 50 . Total Part Build Rating 70 | . . . . . . . . . 18 . . . . . . . . . . . 29 . 18 . . . . . . . 5 . Parts Repaired 5 | . . . 1 . . . 1 . 1 . . . . . . 1 . . . . 1 . . . . . . . . . . . Time 165 | . . . 32 . . . 19 . 44 . . . . . . 35 . . . . 35 . . . . . . . . . . . Parts Recycled . | . . . . . . . . . . . . . . . . . . . . . . . . . . . . . . . . . Recycled Matter . | . . . . . . . . . . . . . . . . . . . . . . . . . . . . . . . . . Retrieved Matter . | . . . . . . . . . . . . . . . . . . . . . . . . . . . . . . . . . Retrieved Components 8 | . . . 7 . . . . . . . . . . . . 1 . . . . . . . . . . . . . . . . Parts Scanalyzed 18 | . . . 8 . . . 4 . . . . . . . . 1 . . . . 1 . . . . . . . . . 4 . Part Schematics Acquired 17 | . . . 8 . . . 4 . . . . . . . . 1 . . . . 1 . . . . . . . . . 3 . Parts Damaged 2 | . . . 1 . . . . . . . . . . . . . . . . . . . . . . . . . . . 1 . Bothacking | -11 -10 -10 -9 -9 -9 -8 -8 -8 -7 -7 -7 -7 -6 -6 -6 -5 -5 -5 -5 -4 -4 -4 -4 -4 -4 -4 -3 -3 -2 -2 -1 -1 ------------ Run | Yrd Mat Min Mat Min Exi Min Mat Sto Fac Low Low Dat Pro Fac DSF Fac Upp Upp Zhi Pro Fac Was Fac Upp Upp War Pro Res Res Tes Acc Com Used RIF Installer . | . . . . . . . . . . . . . . . . . . . . . . . . . . . . . . . . . Robots Hacked . | . . . . . . . . . . . . . . . . . . . . . . . . . . . . . . . . . Non-combat . | . . . . . . . . . . . . . . . . . . . . . . . . . . . . . . . . . Combat . | . . . . . . . . . . . . . . . . . . . . . . . . . . . . . . . . . Robot Hacks Applied . | . . . . . . . . . . . . . . . . . . . . . . . . . . . . . . . . . Relay Couplers Released 4 | . . . . . . . 3 . 1 . . . . . . . . . . . . . . . . . . . . . . . Machine Destruction 4 | . . . . . . . 3 . 1 . . . . . . . . . . . . . . . . . . . . . . . Fabnet Peak Effective % . | . . . . . . . . . . . . . . . . . . . . . . . . . . . . . . . . . Robots Rewired 1 | . . . . . . . . . . . . . . . . . . . . . . . . . . . . . . 1 . . Allies Hacked 1 | . . . . . . . . . . . . . . . . . . . . . . . . . . . . . . . . 1 Hacks Repelled . | . . . . . . . . . . . . . . . . . . . . . . . . . . . . . . . . . Allies | -11 -10 -10 -9 -9 -9 -8 -8 -8 -7 -7 -7 -7 -6 -6 -6 -5 -5 -5 -5 -4 -4 -4 -4 -4 -4 -4 -3 -3 -2 -2 -1 -1 -------- Run | Yrd Mat Min Mat Min Exi Min Mat Sto Fac Low Low Dat Pro Fac DSF Fac Upp Upp Zhi Pro Fac Was Fac Upp Upp War Pro Res Res Tes Acc Com Total Allies 42 | . . 2 . . . . . 10 2 . . . . . . . . . . . 1 20 . . . . . 3 1 1 1 1 Largest Group 20 | . . 2 2 . . . . 10 6 . . . . . . . . . . . 1 20 19 . . . . 3 1 1 1 1 Highest-Rated Group 762 | . . 44 44 . . . . 173 109 . . . . . . . . . . . 26 762 735 . . . . 141 67 153 45 45 Highest-Rated Ally 153 | . . 31 31 . . . . 29 29 . . . . . . . . . . . 26 50 50 . . . . 47 67 153 45 45 Total Orders 3 | . . . . . . . . . 2 . . . . . . . . . . . . . . . . . . . . . 1 . STAY 3 | . . . . . . . . . 2 . . . . . . . . . . . . . . . . . . . . . 1 . Ally Attacks 223 | . . 4 31 . . . . 53 22 . . . . . . . . . . . . 10 87 . . . . 4 4 8 . . Total Damage 5058 | . . 65 489 . . . . 777 205 . . . . . . . . . . . . 267 2123 . . . . 83 531 518 . . Kills 40 | . . 1 7 . . . . 9 2 . . . . . . . . . . . . . 13 . . . . 1 3 4 . . Allies Corrupted 1 | . . . . . . . . . 1 . . . . . . . . . . . . . . . . . . . . . . . Allies Melted . | . . . . . . . . . . . . . . . . . . . . . . . . . . . . . . . . . Intel | -11 -10 -10 -9 -9 -9 -8 -8 -8 -7 -7 -7 -7 -6 -6 -6 -5 -5 -5 -5 -4 -4 -4 -4 -4 -4 -4 -3 -3 -2 -2 -1 -1 ------- Run | Yrd Mat Min Mat Min Exi Min Mat Sto Fac Low Low Dat Pro Fac DSF Fac Upp Upp Zhi Pro Fac Was Fac Upp Upp War Pro Res Res Tes Acc Com Robot Analysis Total 24 | . 5 . 3 . . . 3 3 4 . . . . . . 2 . . 4 . . . . . . . . . . . . . Derelict Logs Recovered 11 | . . 2 . 1 . . . . . . 1 . 1 . . . 1 1 . 1 . . . 2 1 . . . . . . . Drone Launches . | . . . . . . . . . . . . . . . . . . . . . . . . . . . . . . . . . Drone Recoveries . | . . . . . . . . . . . . . . . . . . . . . . . . . . . . . . . . . Exploration | -11 -10 -10 -9 -9 -9 -8 -8 -8 -7 -7 -7 -7 -6 -6 -6 -5 -5 -5 -5 -4 -4 -4 -4 -4 -4 -4 -3 -3 -2 -2 -1 -1 ------------- Run | Yrd Mat Min Mat Min Exi Min Mat Sto Fac Low Low Dat Pro Fac DSF Fac Upp Upp Zhi Pro Fac Was Fac Upp Upp War Pro Res Res Tes Acc Com Turns Passed 19780 | 63 671 1522 2678 300 950 192 3192 1321 3166 120 257 19 147 38 81 428 150 193 56 223 463 100 187 60 86 146 85 110 1006 100 591 1079 Spaces Moved 23724 | 34 318 914 1331 130 380 77 1506 723 3992 266 544 82 357 119 100 964 444 787 163 580 673 139 549 363 505 813 226 445 1689 440 1785 2286 Core 2 | 2 . . . . . . . . . . . . . . . . . . . . . . . . . . . . . . . . Treads 6528 | 32 318 914 1331 130 380 77 1506 723 1117 . . . . . . . . . . . . . . . . . . . . . . . Legs . | . . . . . . . . . . . . . . . . . . . . . . . . . . . . . . . . . Wheels . | . . . . . . . . . . . . . . . . . . . . . . . . . . . . . . . . . Hover . | . . . . . . . . . . . . . . . . . . . . . . . . . . . . . . . . . Flight 17194 | . . . . . . . . . 2875 266 544 82 357 119 100 964 444 787 163 580 673 139 549 363 505 813 226 445 1689 440 1785 2286 Fastest Speed 5 | 50 160 160 160 170 250 250 162 162 23 23 23 23 23 20 20 15 15 15 17 7 15 15 16 16 16 16 16 10 10 10 10 5 Average Speed 59 | 153 160 160 168 203 250 250 173 162 62 23 24 23 23 20 24 17 23 19 19 16 15 15 16 16 16 16 16 10 10 10 10 10 Slowest Speed 250 | 160 160 160 250 250 250 250 250 162 250 23 88 23 23 20 87 86 26 20 90 17 16 16 81 16 16 82 16 10 11 10 13 70 Overloaded Moves 52 | . . . . . . . . . . . . . . . . . . . . 9 . . . . . . . . . . . 43 Propulsion Burnouts . | . . . . . . . . . . . . . . . . . . . . . . . . . . . . . . . . . Robots Hopped 124 | . . . . . . . . . 17 1 2 . . . . 8 2 . . 1 2 1 2 . . . 1 10 29 1 13 34 Cave-ins Triggered . | . . . . . . . . . . . . . . . . . . . . . . . . . . . . . . . . . Exploration Rate (%) 57 | 4 48 100 91 33 89 22 87 90 75 45 78 71 59 5 83 25 60 92 61 75 23 71 15 67 66 90 44 18 37 63 47 49 Regions Visited 32 Branch Regions 19 Pre-discovered Areas 9 | . . 2 1 . 1 . . . . . . 1 . . . . . . 3 1 . . . . . . . . . . . . Known Exits Taken 9 | . . . 1 . . . 1 . 1 . . . . 1 . 1 . . . . . . 1 . . . 1 1 . . 1 . Unknown Exits Taken 20 | 1 1 1 . 1 1 1 . 1 . 1 1 1 1 . . . 1 1 1 1 . . . 1 1 1 . . 1 1 . . Scrap Searched 25 | . . 2 . . . . . . . . 4 . 3 . . . 3 4 . 4 . . . 3 2 . . . . . . . Spaces Dug 55 | . . . . . . . 10 . 4 . . . . . . 10 . . . . 3 . 3 . . . . 7 4 . 8 6 Terrain Destroyed 299 | . . . . . . . 140 6 21 . . . . . . 10 . . . . 3 . 3 . . . . 7 4 1 18 86 Melee 44 | . . . . . . . . . 3 . . . . . . 10 . . . . 3 . 3 . . . . 7 4 . 8 6 Projectile 76 | . . . . . . . 48 6 7 . . . . . . . . . . . . . . . . . . . . 1 7 7 AOE 179 | . . . . . . . 92 . 11 . . . . . . . . . . . . . . . . . . . . . 3 73 Terrain Rammed . | . . . . . . . . . . . . . . . . . . . . . . . . . . . . . . . . . Walls Destroyed . | . . . . . . . . . . . . . . . . . . . . . . . . . . . . . . . . . Machines Disabled . | . . . . . . . . . . . . . . . . . . . . . . . . . . . . . . . . . Actions | -11 -10 -10 -9 -9 -9 -8 -8 -8 -7 -7 -7 -7 -6 -6 -6 -5 -5 -5 -5 -4 -4 -4 -4 -4 -4 -4 -3 -3 -2 -2 -1 -1 --------- Run | Yrd Mat Min Mat Min Exi Min Mat Sto Fac Low Low Dat Pro Fac DSF Fac Upp Upp Zhi Pro Fac Was Fac Upp Upp War Pro Res Res Tes Acc Com Total 28427 | 41 423 964 1602 147 381 78 1900 827 4466 322 665 81 418 133 157 1184 476 818 192 704 1024 216 636 364 507 830 272 479 2459 488 2122 3051 Wait 3639 | . 60 16 69 2 . 2 220 48 273 53 115 . 53 7 14 197 23 22 15 126 322 72 69 . . 1 48 26 752 41 265 728 Move 23458 | 33 317 913 1330 129 379 76 1505 722 3957 263 539 81 356 118 99 948 439 786 162 577 669 136 544 362 504 812 223 426 1636 437 1759 2221 Hop 111 | . . . . . . . . . 17 1 2 . . . . 7 2 . . 1 2 1 2 . . . 1 8 23 1 12 31 Pick Up 144 | 1 7 14 27 . . . 15 8 20 . 2 . 1 1 4 2 3 1 5 . 6 2 2 1 . 3 . 2 4 . 8 5 Fast Attach 80 | 6 1 . 7 1 1 . 9 3 8 . . . 1 . . 6 . 2 3 . 2 . 5 . 1 4 . . 6 1 5 8 Attach 57 | . . . 3 1 . . 4 . 12 . 2 . 1 4 2 2 2 . . . 6 . 1 . . . . 2 2 . 6 7 Detach 29 | . . . . . . . 1 . 6 2 2 . 1 2 1 2 . . . . 1 . . . . . . . 1 . 3 7 Swap 100 | 1 4 4 23 2 . . 14 7 14 1 . . 1 . . 1 . 2 . . 7 2 2 . . 2 . 2 3 . 5 3 Drop 202 | . 3 9 48 2 1 . 21 13 36 1 2 . 2 1 1 2 1 2 7 . 4 3 6 1 1 8 . . 9 1 12 5 Fire 394 | . 31 8 95 10 . . 106 25 60 . . . . . . . . . . . . . . . . . . . . 4 33 22 Melee 149 | . . . . . . . . . 44 1 1 . 2 . . 17 6 3 . . 5 . 5 . 1 . . 12 23 1 14 14 Ram . | . . . . . . . . . . . . . . . . . . . . . . . . . . . . . . . . . Kick . | . . . . . . . . . . . . . . . . . . . . . . . . . . . . . . . . . Crush 7 | . . . . . . . 5 1 1 . . . . . . . . . . . . . . . . . . . . . . . Escape Stasis 56 | . . . . . . . . . 18 . . . . . 36 . . . . . . . . . . . . 1 . 1 . . Rewire 1 | . . . . . . . . . . . . . . . . . . . . . . . . . . . . . . 1 . . Trap . | . . . . . . . . . . . . . . . . . . . . . . . . . . . . . . . . . Miscellaneous . | . . . . . . . . . . . . . . . . . . . . . . . . . . . . . . . . . Route ------- -11/Scrapyard -10/Materials (discovered 2 exits: *Mat / [*Min]) -10/Mines (discovered 3 exits: *Mat x2 / [*Sub]) -9/Materials (discovered 4 exits: *Mat x2 / *Min x2) -9/Mines -9/Exiles -8/Mines -8/Materials (discovered 3 exits: *Fac x2 / *Sto) -8/Storage (discovered 2 exits: *Fac / [*Rec]) -7/Factory (discovered 5 exits: *Fac x3 / *Low x2) -7/Lower Caves -7/Lower Caves (discovered 2 exits: *Fac / *Dat) -7/Data Miner -6/Proximity Caves -6/Factory -6/DSF -5/Factory (discovered 2 exits: *Fac / *Upp) -5/Upper Caves -5/Upper Caves -5/Zhirov -4/Proximity Caves -4/Factory (discovered 4 exits: Res / Upp x2 / Arm) -4/Waste -4/Factory (discovered 3 exits: *Upp x2 / Arm) -4/Upper Caves -4/Upper Caves (discovered 2 exits: *Res / *War) -4/Warlord -3/Proximity Caves -3/Research (discovered 4 exits: *Res x3 / [*Qua]) -2/Research -2/Testing -1/Access -1/Command History --------- Turn | Location | Event 27 | -11/Scrapyard | Discovered new exit (range 16) 64 | -11/Scrapyard | Entered Materials 317 | -10/Materials | Build established: Mutant 430 | -10/Materials | Discovered new exit (range 14) 665 | -10/Materials | Discovered new exit (range 9) 667 | -10/Materials | Central database locked down 735 | -10/Materials | Entered Mines 801 | -10/Mines | Discovered new exit (range 6) 951 | -10/Mines | Found a hidden stash of uninstalled traps 996 | -10/Mines | Learned location of Zion (-6) 1181 | -10/Mines | Discovered new exit (range 3) 1205 | -10/Mines | Joined a pair of Derelicts in attacking an 0b10 outpost 1410 | -10/Mines | Received a Rocket Launcher from a helpful Derelict 1470 | -10/Mines | Learned location of Storage (-8) 2176 | -10/Mines | Discovered new exit (range 8) 2257 | -10/Mines | Entered Materials 2257 | -9/Materials | Accompanied by 2 allies 2257 | -9/Materials | Evolved 2 slots: Utility x2 2258 | -9/Materials | Identified exit to Mines 2262 | -9/Materials | Led the pair of lost Derelicts to an unsafe place 2997 | -9/Materials | Central database locked down 3685 | -9/Materials | Discovered new exit (range 3) 4030 | -9/Materials | Discovered new exit (range 7) 4748 | -9/Materials | Repaired Disposable Heat Sink 4935 | -9/Materials | Entered Mines 4936 | -9/Mines | Assembled infested the area 5021 | -9/Mines | Met 8R-AWN 5092 | -9/Mines | Met a Derelict who couldn't figure out how to use a Trap Extractor 5175 | -9/Mines | Learned 4 Materials zone layouts 5225 | -9/Mines | Discovered new exit (range 5) 5235 | -9/Mines | Entered Exiles 5295 | -9/Exiles | Welcomed by 8R-AWN 5340 | -9/Exiles | Met EX-HEX 5413 | -9/Exiles | Met EX-BIN 5440 | -9/Exiles | Aligned with FarCom system 5443 | -9/Exiles | Given EX-Vault access code 5500 | -9/Exiles | Opened EX-Vault 5516 | -9/Exiles | Found Cloak of Protection 5570 | -9/Exiles | Warned to stay clear of 0b10 Research branches 5640 | -9/Exiles | Met EX-DEC 5783 | -9/Exiles | Visited The Gauntlet 6165 | -9/Exiles | Discovered new exit (range 10) 6185 | -9/Exiles | Left Exiles lab with Cloak of Protection 6185 | -9/Exiles | Entered Mines 6310 | -8/Mines | Discovered new exit (range 8) 6377 | -8/Mines | Entered Materials 6377 | -8/Materials | Evolved 2 slots: Propulsion x2 6377 | -8/Materials | Discovered new exit (range 15) 6698 | -8/Materials | Garrison activated, responded to threat 7077 | -8/Materials | Discovered new exit (range 16) 7216 | -8/Materials | Central database locked down 7641 | -8/Materials | Build established: Scavenger-Mutant 8399 | -8/Materials | Repaired Arm. Treads 8878 | -8/Materials | Discovered new exit (range 8) 9281 | -8/Materials | Identified exit to Storage 9569 | -8/Materials | Entered Storage 10212 | -8/Storage | Assisted by bots powering up and referring to "LRC-V3" 10523 | -8/Storage | Build established: Commander-Mutant 10578 | -8/Storage | Used back door to open Recycling access 10578 | -8/Storage | Discovered new exit (range 5) 10746 | -8/Storage | Central database locked down 10809 | -8/Storage | Discovered new exit (range 15) 10890 | -8/Storage | Entered Factory 10890 | -7/Factory | Accompanied by 6 allies 10890 | -7/Factory | Evolved 2 slots: Propulsion x1, Utility x1 10933 | -7/Factory | Discovered new exit (range 8) 10973 | -7/Factory | Repaired Hvy. Ion Cannon? 11180 | -7/Factory | Build established: Hacker-Mutant 11233 | -7/Factory | Discovered new exit (range 6) 11415 | -7/Factory | Hacking Suite fried by hacking feedback 12205 | -7/Factory | Fabricated Hacking Suite (x1) 12750 | -7/Factory | Fabricated Hacking Suite (x1) 13033 | -7/Factory | Identified exit to Lower Caves 13135 | -7/Factory | Discovered new exit (range 7) 13353 | -7/Factory | Build established: Hacker-Sprinter 13447 | -7/Factory | Discovered new exit (range 10) 13566 | -7/Factory | Central database locked down 13584 | -7/Factory | Fabricated Cld. VTOL Module? 13768 | -7/Factory | Fabricated Cld. VTOL Module (x1) 14044 | -7/Factory | Fabricated Cld. VTOL Module (x1) 14056 | -7/Factory | Entered Lower Caves 14058 | -7/Lower Caves | Acquired the password to a Derelict Tinkerer's latest research 14165 | -7/Lower Caves | Discovered new exit (range 7) 14176 | -7/Lower Caves | Entered another Lower Caves area 14177 | -7/Lower Caves | Encountered a Warlord checkpoint 14185 | -7/Lower Caves | Discovered new exit (range 14) 14210 | -7/Lower Caves | Spotted B-75 Beast 14372 | -7/Lower Caves | Attacked by a delusional Derelict stockpiling parts 14426 | -7/Lower Caves | Discovered new exit (range 15) 14433 | -7/Lower Caves | Entered Data Miner 14433 | -7/Data Miner | Discovered new exit (range 6) 14438 | -7/Data Miner | Met Data Miner 14443 | -7/Data Miner | Learned location of Section 7 (-3) 14443 | -7/Data Miner | Acquired the access code to Warlord's prototype stash 14447 | -7/Data Miner | Received God Mode back door access code from Data Miner 14452 | -7/Data Miner | Entered Proximity Caves 14559 | -6/Proximity Caves | Learned 4 Factory zone layouts 14583 | -6/Proximity Caves | Discovered new exit (range 8) 14599 | -6/Proximity Caves | Entered Factory 14599 | -6/Factory | Evolved 2 slots: Power x1, Propulsion x1 14637 | -6/Factory | Identified exit to DSF 14637 | -6/Factory | Entered DSF 14654 | -6/DSF | Additional patrols routed to DSF 14703 | -6/DSF | Discovered new exit (range 15) 14718 | -6/DSF | Entered Factory 14718 | -5/Factory | Evolved 2 slots: Propulsion x2 14719 | -5/Factory | Identified exit to Upper Caves 14820 | -5/Factory | Discovered new exit (range 7) 14843 | -5/Factory | Spotted B-75 Beast 14898 | -5/Factory | Repaired Cld. VTOL Module 15146 | -5/Factory | Entered Upper Caves 15268 | -5/Upper Caves | Learned location of 1 exit from Factory 15281 | -5/Upper Caves | Discovered new exit (range 9) 15296 | -5/Upper Caves | Entered another Upper Caves area 15297 | -5/Upper Caves | Encountered a Warlord checkpoint 15320 | -5/Upper Caves | Learned Factory stockpile data 15355 | -5/Upper Caves | Discovered new exit (range 7) 15489 | -5/Upper Caves | Entered Zhirov 15489 | -5/Zhirov | Discovered new exit (range 3) 15493 | -5/Zhirov | Met Zhirov 15497 | -5/Zhirov | Learned location of Quarantine (-3) 15497 | -5/Zhirov | Learned location of Testing (-2) 15497 | -5/Zhirov | Learned location of Command (-1) 15500 | -5/Zhirov | Zhirov requested help retrieving the SGEMP Prototype 15509 | -5/Zhirov | Found Alien Artifact 15514 | -5/Zhirov | Found Alien Artifact 15514 | -5/Zhirov | Identified Integrated Reactor 15514 | -5/Zhirov | Installed Integrated Reactor, increased core energy generation (+10) 15545 | -5/Zhirov | Entered Proximity Caves 15591 | -4/Proximity Caves | Attracted the attention of an 0b10 checkpoint 15613 | -4/Proximity Caves | Spotted B-86 Titan 15728 | -4/Proximity Caves | Attracted the attention of an 0b10 outpost 15763 | -4/Proximity Caves | Discovered new exit (range 6) 15768 | -4/Proximity Caves | Entered Factory 15768 | -4/Factory | Evolved 2 slots: Utility x2 15769 | -4/Factory | Identified exit to Research 15837 | -4/Factory | Fabricated Biomechanical Wings (x1) 15890 | -4/Factory | Fabricated Biomechanical Wings (x1) 15938 | -4/Factory | Fabricated Cld. VTOL Module (x1) 15991 | -4/Factory | Fabricated Biomechanical Wings (x1) 16046 | -4/Factory | Fabricated Biomechanical Wings (x1) 16073 | -4/Factory | Identified exit to Upper Caves 16073 | -4/Factory | Identified exit to Armory 16177 | -4/Factory | Repaired Cld. VTOL Module 16204 | -4/Factory | Identified Transdimensional Reconstructor 16206 | -4/Factory | Fabricated Biomechanical Wings? 16231 | -4/Factory | Sucked down chute 16231 | -4/Factory | Entered Waste 16232 | -4/Waste | Joined by Warlord forces that had cleared the area 16246 | -4/Waste | Found Prototype Hackware 16254 | -4/Waste | Discovered new exit (range 16) 16257 | -4/Waste | Found Broken Enh. Force Lance 16330 | -4/Waste | A Compactor rumbled back to life 16331 | -4/Waste | Spotted C-40 Crusher 16331 | -4/Waste | Entered Factory 16331 | -4/Factory | Accompanied by 19 allies 16413 | -4/Factory | Fabricated Quantum Reactor (x2) 16456 | -4/Factory | Identified Exp. Hacking Suite 16518 | -4/Factory | Entered Upper Caves 16521 | -4/Upper Caves | Learned Research stockpile data 16546 | -4/Upper Caves | Encountered a Warlord checkpoint 16549 | -4/Upper Caves | Learned Research stockpile data 16577 | -4/Upper Caves | Discovered new exit (range 7) 16578 | -4/Upper Caves | Entered another Upper Caves area 16580 | -4/Upper Caves | Learned Research emergency access door positions 16582 | -4/Upper Caves | Discovered exit to Research (range 10) 16630 | -4/Upper Caves | Encountered a Warlord checkpoint 16631 | -4/Upper Caves | Discovered new exit (range 15) 16664 | -4/Upper Caves | Entered Warlord 16694 | -4/Warlord | Met Warlord 16717 | -4/Warlord | Warlord's base attacked by MAIN.C 16773 | -4/Warlord | Opened Warlord's prototype stash 16780 | -4/Warlord | Found Prototype Reactor 16780 | -4/Warlord | Identified Vortex Chain Reactor 16784 | -4/Warlord | Found Prototype Device 16784 | -4/Warlord | Identified System Purifier 16806 | -4/Warlord | Opened side exit 16809 | -4/Warlord | Discovered new exit (range 10) 16810 | -4/Warlord | Entered Proximity Caves 16887 | -3/Proximity Caves | Build established: Wizard-Sprinter 16892 | -3/Proximity Caves | Discovered exit to Research (range 13) 16894 | -3/Proximity Caves | Attracted the attention of an 0b10 checkpoint 16895 | -3/Proximity Caves | Entered Research 16895 | -3/Research | Evolved 2 slots: Propulsion x2 16938 | -3/Research | Identified exit to Research 16984 | -3/Research | Discovered new exit (range 12) 17001 | -3/Research | Fabricated G-67 Veteran? 17005 | -3/Research | Entered another Research area 17005 | -2/Research | Warlord forces began assault on 0b10 17005 | -2/Research | Evolved 2 slots: Propulsion x2 17115 | -2/Research | Research machine network offline 17155 | -2/Research | Fabricated D-83 Annihilator? 17202 | -2/Research | Spotted B-90 Cyclops 17226 | -2/Research | Met up with Warlord 17238 | -2/Research | Found Prototype Processor 17238 | -2/Research | Identified Spectral Analyzer 17271 | -2/Research | Spotted Striker 17275 | -2/Research | Spotted Executioner 17545 | -2/Research | Borebot progress halted 17546 | -2/Research | Spotted Executioner 17615 | -2/Research | Spotted Striker 17692 | -2/Research | Borebot progress halted 17959 | -2/Research | Spotted Executioner 17959 | -2/Research | Spotted Executioner 18005 | -2/Research | Warlord invited to help at Command 18010 | -2/Research | Discovered new exit (range 15) 18011 | -2/Research | Entered Testing 18012 | -2/Testing | Maximum security lockdown engaged 18029 | -2/Testing | Spotted PH-6BPYVXR991 18029 | -2/Testing | Rewired PH-6BPYVXR991 18066 | -2/Testing | Found Prototype Energy Cannon 18066 | -2/Testing | Identified Cld. Nova Cannon 18103 | -2/Testing | Spotted PD-H2G7PZKOWX 18111 | -2/Testing | Discovered new exit (range 3) 18111 | -2/Testing | Entered Access 18111 | -1/Access | Evolved 2 slots: Utility x2 18121 | -1/Access | Spotted B-99 Colossus 18236 | -1/Access | Fabricated Biomechanical Wings? 18290 | -1/Access | Found Prototype Processor 18290 | -1/Access | Identified Exp. Core Analyzer 18309 | -1/Access | Spotted B-99 Colossus 18324 | -1/Access | Found Enh. Force Lance 18334 | -1/Access | Found Hvy. Insulated Plating 18361 | -1/Access | First assault squad dispatched 18618 | -1/Access | Build established: Hacker-Sprinter 18663 | -1/Access | Identified exit to Command 18702 | -1/Access | Entered Command 18739 | -1/Command | Phase Generator disabled 18839 | -1/Command | Spotted B-99 Colossus 18986 | -1/Command | First assault squad dispatched 19052 | -1/Command | Disengaged cave seal 19052 | -1/Command | Derelicts emerged from the dark tunnel 19052 | -1/Command | Welcomed Warlord to Command 19259 | -1/Command | Spotted Striker 19341 | -1/Command | Found Prototype Launcher 19341 | -1/Command | Identified Enh. Gamma Bomb Array 19654 | -1/Command | Build established: Machinist-Sprinter 19688 | -1/Command | Spotted M Guard 19688 | -1/Command | Spotted M Guard 19709 | -1/Command | Spotted Combat Programmer 19709 | -1/Command | Spotted Combat Programmer 19715 | -1/Command | Met MAIN.C 19716 | -1/Command | 0b10 Conduit disabled 19765 | -1/Command | System corruption reached 10% 19772 | -1/Command | Failed to warp due to unstable space 19773 | -1/Command | Core integrity fell below 50% 19778 | -1/Command | Core integrity fell below 20% 19781 | -1/Command | Destroyed by Combat Programmer with EMDS Last Messages --------------- 19767_ Penetrated by EMDS Slug. 19770_ Biomechanical Wings destroyed. 19770_ EMDS Slug penetrates Reinforced Barrier. 19771_ Adv. Cloaking Device destroyed. 19771_ Med. Storage Unit destroyed. 19772_ Acquired Transdimensional Reconstructor. 19772_ Warp failed due to unstable space. 19772_ Penetrated by EMDS Slug. 19773_ Adv. System Shield destroyed. 19775_ Cld. Field Propulsion Drive destroyed. 19775_ Penetrated by EMDS Slug. 19776_ Cld. Nova Cannon destroyed. 19776_ Imp. Cesium-ion Thruster destroyed. 19778_ Penetrated by EMDS Slug. 19778_ Enh. Force Lance destroyed. 19778_ EMDS Slug penetrates Heavy Barrier. 19780_ Penetrated by EMDS Slug. 19781_ E